{"text_format":"3","workbook":"xlsx","n_sheets":4,"sheets":["Notes Loc Ng","PQ","RT","Données"],"not_rendered":{"images":5,"macros":1,"defined_names":19},"read":"whole","date_system":"1900"}

{"sheet":"Notes Loc Ng","index":0,"n_rows":92,"n_cols":39,"rows_kept":92,"merged":[[1,34,1,37],[1,38,2,38],[4,34,4,37],[4,38,5,38],[5,36,5,37],[6,36,6,37],[7,34,7,37],[7,38,8,38],[8,35,8,36],[9,35,9,36]]}
[1,{"$nulls":6},1]
[{"$nulls":32},701,null,"Mesure",{"$nulls":3},"Total"]
[{"$nulls":32},702,null,"Realisée","Suppl.","GéoV2","Run V Géov2"]
[{"$nulls":23},"Date","Garage","Tournée","Mesure Programmée","ach programmé",{"$nulls":4},703,null,{"$f":"SUMIF('Notes Loc Ng'!$I$12:$I$85,\"Programme Réalisé\",'Notes Loc Ng'!$S$12:$S$85)+SUMIF('Notes Loc Ng'!$I$12:$I$85,\"LTV 30\",'Notes Loc Ng'!$S$12:$S$85)+SUMIF('Notes Loc Ng'!$I$12:$I$85,\"LTV 40\",'Notes Loc Ng'!$S$12:$S$85)+SUMIF('Notes Loc Ng'!$I$12:$I$85,\"LTV 60\",'Notes Loc Ng'!$S$12:$S$85)+SUMIF('Notes Loc Ng'!$I$12:$I$85,\"LTV 80\",'Notes Loc Ng'!$S$12:$S$85)","v":{"v":0,"d":"0.000"}},{"$f":"SUMIF('Notes Loc Ng'!$I$12:$I$92,\"Mesure Supplémentaire\",'Notes Loc Ng'!$S$12:$S$92)+SUMIF('Notes Loc Ng'!$I$12:$I$92,\"Demande Infrapôle\",'Notes Loc Ng'!$S$12:$S$92)","v":{"v":0,"d":"0.000"}},{"$f":"SUMIF('Notes Loc Ng'!$I$12:$I$92,\"GéoV2\",'Notes Loc Ng'!$S$12:$S$92)","v":{"v":0,"d":"0.000"}},{"$f":"SUMIF('Notes Loc Ng'!$I$12:$I$92,\"Run GéoV2\",'Notes Loc Ng'!$S$12:$S$92)","v":{"v":0,"d":"0.000"}},{"$f":"SUM(AI4+AJ4+AK4+AL4)","v":{"v":0,"d":"0.000"}}]
[{"$nulls":23},{"$f":"PQ!E2","v":"2024-06-02"},{"$f":"PQ!R2","v":"DEPOT"},{"$f":"PQ!F2","v":"SE42"},"a","b",{"$nulls":6},"Acheminement",{"$nulls":3},"Total"]
[{"$nulls":34},"Réalisé","Evolution","Supplémentaire"]
[{"$nulls":34},{"$f":"SUMIF('Notes Loc Ng'!$I$12:$I$92,\"Acheminement\",'Notes Loc Ng'!$S$12:$S$92)","v":{"v":0,"d":"0.000"}},{"$f":"SUMIF('Notes Loc Ng'!$I$12:$I$92,\"Evolution\",'Notes Loc Ng'!$S$12:$S$92)","v":{"v":0,"d":"0.000"}},{"$f":"SUMIF('Notes Loc Ng'!$I$12:$I$92,\"Ach Supplémentaire\",'Notes Loc Ng'!$S$12:$S$92)","v":{"v":0,"d":"0.000"}},null,{"$f":"SUM(AI7+AK7+AJ7)","v":{"v":0,"d":"0.000"}}]
[{"$nulls":34},"Pertes",{"$nulls":3},"Total"]
[{"$nulls":34},"EIC","PROGRAMATION",null,"LOC"]
[{"$nulls":34},{"$f":"SUMIF('Notes Loc Ng'!$H$12:$H$92,\"EIC\",'Notes Loc Ng'!$S$12:$S$92)","v":{"v":0,"d":"0.000"}},{"$f":"SUMIF('Notes Loc Ng'!$H$12:$H$92,\"PROG\",'Notes Loc Ng'!$S$12:$S$92)","v":{"v":0,"d":"0.000"}},null,{"$f":"SUMIF('Notes Loc Ng'!$H$12:$H$92,\"LOC\",'Notes Loc Ng'!$S$12:$S$92)","v":{"v":0,"d":"0.000"}},{"$f":"SUM(AI10+AJ10+AL10)","v":{"v":0,"d":"0.000"}}]
[{"$nulls":7},"Catégories","Motifs","Cause","Ligne","Voie","Départ","Arrivée","Lieux"]
[{"$nulls":17},"15",{"$f":"ABS(M12-N12)","v":{"v":0,"d":"0.000"}}]
[{"$nulls":17},"16",{"$f":"ABS(M13-N13)","v":{"v":0,"d":"0.000"}}]
[{"$nulls":17},"17",{"$f":"ABS(M14-N14)","v":{"v":0,"d":"0.000"}}]
[{"$nulls":17},"18",{"v":0,"d":"0.000"}]
[{"$nulls":17},"19",{"v":0,"d":"0.000"}]
[{"$nulls":17},"20",{"v":0,"d":"0.000"}]
[{"$nulls":17},"21",{"v":0,"d":"0.000"}]
[{"$nulls":17},"22",{"v":0,"d":"0.000"}]
[{"$nulls":17},"23",{"v":0,"d":"0.000"}]
[{"$nulls":17},"24",{"v":0,"d":"0.000"}]
[{"$nulls":17},"25",{"v":0,"d":"0.000"}]
[{"$nulls":17},"26",{"v":0,"d":"0.000"}]
[{"$nulls":17},"27",{"v":0,"d":"0.000"}]
[{"$nulls":17},"28",{"v":0,"d":"0.000"}]
[{"$nulls":17},"29",{"v":0,"d":"0.000"}]
[{"$nulls":17},"30",{"v":0,"d":"0.000"}]
[{"$nulls":17},"31",{"v":0,"d":"0.000"}]
[{"$nulls":17},"32",{"v":0,"d":"0.000"}]
[{"$nulls":17},"33",{"v":0,"d":"0.000"}]
[{"$nulls":17},"34",{"v":0,"d":"0.000"}]
[{"$nulls":17},"35",{"v":0,"d":"0.000"}]
[{"$nulls":17},"36",{"v":0,"d":"0.000"}]
[{"$nulls":17},"37",{"v":0,"d":"0.000"}]
[{"$nulls":17},"38",{"v":0,"d":"0.000"}]
[{"$nulls":17},"39",{"v":0,"d":"0.000"}]
[{"$nulls":17},"40",{"v":0,"d":"0.000"}]
[{"$nulls":17},"41",{"v":0,"d":"0.000"}]
[{"$nulls":17},"42",{"v":0,"d":"0.000"}]
[{"$nulls":17},"43",{"v":0,"d":"0.000"}]
[{"$nulls":17},"44",{"v":0,"d":"0.000"}]
[{"$nulls":17},"45",{"v":0,"d":"0.000"}]
[{"$nulls":17},"46",{"v":0,"d":"0.000"}]
[{"$nulls":17},"47",{"$f":"ABS(M44-N44)","v":{"v":0,"d":"0.000"}}]
[{"$nulls":17},"48",{"v":0,"d":"0.000"}]
[{"$nulls":17},"49",{"v":0,"d":"0.000"}]
[{"$nulls":17},"50",{"v":0,"d":"0.000"}]
[{"$nulls":17},"51",{"v":0,"d":"0.000"}]
[{"$nulls":17},"52",{"v":0,"d":"0.000"}]
[{"$nulls":17},"53",{"v":0,"d":"0.000"}]
[{"$nulls":17},"54",{"v":0,"d":"0.000"}]
[{"$nulls":17},"55",{"v":0,"d":"0.000"}]
[{"$nulls":17},"56",{"v":0,"d":"0.000"}]
[{"$nulls":17},"57",{"v":0,"d":"0.000"}]
[{"$nulls":17},"58",{"v":0,"d":"0.000"}]
[{"$nulls":17},"59",{"v":0,"d":"0.000"}]
[{"$nulls":17},"60",{"v":0,"d":"0.000"}]
[{"$nulls":17},"61",{"v":0,"d":"0.000"}]
[{"$nulls":17},"62",{"v":0,"d":"0.000"}]
[{"$nulls":17},"63",{"v":0,"d":"0.000"}]
[{"$nulls":17},"64",{"v":0,"d":"0.000"}]
[{"$nulls":17},"65",{"v":0,"d":"0.000"}]
[{"$nulls":17},"66",{"v":0,"d":"0.000"}]
[{"$nulls":17},"67",{"v":0,"d":"0.000"}]
[{"$nulls":17},"68",{"v":0,"d":"0.000"}]
[{"$nulls":17},"69",{"v":0,"d":"0.000"}]
[{"$nulls":17},"70",{"v":0,"d":"0.000"}]
[{"$nulls":17},"71",{"v":0,"d":"0.000"}]
[{"$nulls":17},"72",{"v":0,"d":"0.000"}]
[{"$nulls":17},"73",{"v":0,"d":"0.000"}]
[{"$nulls":17},"74",{"v":0,"d":"0.000"}]
[{"$nulls":17},"75",{"v":0,"d":"0.000"}]
[{"$nulls":17},"76",{"v":0,"d":"0.000"}]
[{"$nulls":17},"77",{"v":0,"d":"0.000"}]
[{"$nulls":17},"78",{"v":0,"d":"0.000"}]
[{"$nulls":17},"79",{"$f":"ABS(M76-N76)","v":{"v":0,"d":"0.000"}}]
[{"$nulls":17},"80",{"v":0,"d":"0.000"}]
[{"$nulls":17},"81",{"v":0,"d":"0.000"}]
[{"$nulls":17},"82",{"v":0,"d":"0.000"}]
[{"$nulls":17},"83",{"v":0,"d":"0.000"}]
[{"$nulls":17},"84",{"v":0,"d":"0.000"}]
[{"$nulls":17},"85",{"v":0,"d":"0.000"}]
[{"$nulls":17},"86",{"v":0,"d":"0.000"}]
[{"$nulls":17},"87",{"v":0,"d":"0.000"}]
[{"$nulls":17},"88",{"v":0,"d":"0.000"}]
[{"$nulls":17},"89",{"v":0,"d":"0.000"}]
[{"$nulls":17},"90",{"v":0,"d":"0.000"}]
[{"$nulls":17},"91",{"v":0,"d":"0.000"}]
[{"$nulls":17},"92",{"v":0,"d":"0.000"}]
[{"$nulls":17},"93",{"v":0,"d":"0.000"}]
[{"$nulls":17},"94",{"v":0,"d":"0.000"}]
[{"$nulls":17},"95",{"v":0,"d":"0.000"}]

{"sheet":"PQ","index":1,"n_rows":7,"n_cols":18,"rows_kept":7}
["Fichier",null,"ESV","Semaine","Date","Tournée","Sillon","Dép","Arr","UIC","Parcours /  Acheminement","R","N°\nLigne","Voie","Pk.Dép","Pk.Arr","Distance","GARAGES"]
["T:\\TEMP\\FILTRAGE2.xlsm",null,702,22,"2024-06-02","SE42","101036[3]","08:40:00",null,"7à9","LIMOGES - LE DORAT",null,606000,"UNIQUE",474.115,419.675,54.44,"DEPOT"]
[null,null,702,22,"2024-06-02","SE42",{"$nulls":3},"7à9","LE DORAT - LIMITE INFRAPOLE",null,604000,"UNIQUE",419.675,408.48,11.194999999999991]
[null,null,702,22,"2024-06-02","SE42",{"$nulls":3},"7à9","LIMITE INFRAPOLE - MONTMORILLON",null,604000,"UNIQUE",408.48,389.898,18.581999999999994]
[null,null,702,22,"2024-06-02","SE42",{"$nulls":3},"7à9","MONTMORILLON - MIGNALOUX",null,604000,"UNIQUE",389.898,347.415,42.483]
[null,null,702,22,"2024-06-02","SE42",{"$nulls":3},"7à9","MIGNALOUX - ST BENOIT",null,601000,"UNIQUE",347.415,341.14,6.275000000000034]
[null,null,702,22,"2024-06-02","SE42",null,null,"12:55:00","ACH","ST BENOIT - ST PIERRE DES CORPS",null,570000,"V2",341.14,233.02,108.11999999999998]

{"sheet":"RT","index":2,"n_rows":596,"n_cols":5,"rows_kept":596,"hidden":true}
[1,"Arrivée","N° RT",null,"Les Noms"]
["Agen","Auch","14933.0",null,"Agen"]
["Agen","Montauban","14603.0",null,"Angers Saint Laud"]
["Agen","Bordeaux","14602.0",null,"Angoûleme"]
["Agen","Périgueux","14033.0",null,"Arcachon"]
["Angers Saint Laud","Tours","14301.0",null,"Auch"]
["Angers Saint Laud","Nantes","13703.0",null,"Auray"]
["Angers Saint Laud","Le Mans","13701.0",null,"Aurillac"]
["Angoûleme","Saintes","14937.0",null,"Bayonne"]
["Angoûleme","Coutras","14106.0",null,"Biganos Facture"]
["Angoûleme","Poitiers","14105.0",null,"Blanquefort"]
["Arcachon","Biganos Facture","14141.0",null,"Bordeaux St Jean"]
["Arvant","Aurillac","15059.0",null,"Bourges"]
["Arvant","Langogne  ","15058.0",null,"Brest"]
["Auch","Agen","14933.0",null,"Brétigny"]
["Auch","Toulouse","14079.0",null,"Brive La Gaillarde"]
["Auray","Quiberon","13966.0",null,"Busseau"]
["Auray","Pontivy","13067.0",null,"Capdenac"]
["Aurillac","Viescamp sous Jallés","15952.0",null,"Carcassonne"]
["Aurillac","Arvant","15059.0",null,"Chartres"]
["Bayonne","Puyoo","14704.0",null,"Châteaubriant"]
["Bayonne","Saint Jean Pied de Port","14039.0",null,"Châteaudun"]
["Bedous","Pau","14931.0",null,"Châteauroux"]
["Bedous","Pau","14931.0",null,"Chinon"]
["Biganos Facture","Arcachon","14141.0",null,"Cholet"]
["Blanquefort","La Pointe de Grave","14038.0",null,"Clisson"]
["Blanquefort","Bordeaux","14037.0",null,"Coutras"]
["Bordeaux St Jean","Agen","14602.0",null,"Dax"]
["Bordeaux St Jean","La Rochelle","14501.0",null,"Dijon"]
["Bordeaux St Jean","Coutras","14107.0",null,"Dol"]
["Bordeaux St Jean","Blanquefort","14037.0",null,"Felletin"]
["Bordeaux St Jean","Dax","14108.0",null,"Granville"]
["Bourges","Montluçon","14066.0",null,"Joué Lés Tours"]
["Brest","Rennes","13607.0",null,"La Pointe de Grave"]
["Brétigny","Châteaudun","14001.0",null,"La Possonnière"]
["Brive La Gaillarde","Capdenac","14975.0",null,"La Roche sur Yon"]
["Brive La Gaillarde","Ussel","14942.0",null,"La Rochelle"]
["Brive la Gaillarde","Périgueux","14935.0",null,"Landerneau"]
["Brive la Gaillarde","Montauban","14205.0",null,"Latour de Carol"]
["Brive La Gaillarde","Limoges Bénédictins","14204.0",null,"Le Buisson"]
["Busseau","Felletin","14041.0",null,"Le Croisic"]
["Capdenac","Capdenac","14976.0",null,"Le Mans"]
["Capdenac","Brive La Gaillarde","14975.0",null,"Les Aubrais Orléans"]
["Capdenac","Rodez","14073.0",null,"Les Sables d'Olonne"]
["Capdenac","Viescamp","14071.0",null,"Libourne"]
["Carcassonne","Port Bou","15303.0",null,"Limoges Bénédictins"]
["Carcassonne","Limoux","15064.0",null,"Limoux"]
["Carcassonne","Toulouse Matabiau","14208.0",null,"Lison"]
["Chartres","Voves","14005.0",null,"Loches"]
["Chartres","Le Mans","13603.0",null,"Loudeac"]
["Chartres","Paris Montparnasse","13602.0",null,"Massy Palaiseau"]
["Chartres","Courtalain St Pellerin","13049.0",null,"Mont de Marsan"]
["Châteaudun","Tours","14061.0",null,"Montauban"]
["Châteaudun","Brétigny","14001.0",null,"Montluçon"]
["Châteauroux","Limoges Bénédictins","14203.0",null,"Morcenx"]
["Châteauroux","Vierzon","14202.0",null,"Nantes"]
["Chinon","Tours","14062.0",null,"Narbonne"]
["Cholet","Clisson","14968.0",null,"Oyonnax"]
["Cholet","La Possonnière","13074.0",null,"Paris Austerlitz"]
["Clisson","Cholet","14968.0",null,"Paris Montparnasse"]
["Courtalain St Pellerin","Chartres","13049.0",null,"Pau"]
["Coutras","Périgueux","14936.0",null,"Périgueux"]
["Coutras","Bordeaux","14107.0",null,"Perpignan"]
["Coutras","Angoûleme","14106.0",null,"Poitiers"]
["Dax","Tarbes","14703.0",null,"Pontivy"]
["Dax","Hendaye","14109.0",null,"Pornic"]
["Dax","Bordeaux","14108.0",null,"Port Bou"]
["Dol","Lison","13932.0",null,"Puyoo"]
["Dol","Saint Brieuc","13064.0",null,"Quiberon"]
["Felletin","Busseau","14041.0",null,"Quimper"]
["Grannat","Montluçon","15955.0",null,"Redon"]
["Granville","Argentan","13934.0",null,"Rennes"]
["Hendaye","Dax","14109.0",null,"Rodez"]
["Joué Lés Tours","Loches","14063.0",null,"Royan"]
["La Pointe de Grave","Blanquefort","14038.0",null,"Saincaize"]
["La Possonnière","Cholet","13074.0",null,"Saint Brieuc"]
["La Roche sur Yon","Les Sables d'Olonne","14969.0",null,"Saint Denis Près Martel"]
["La Roche sur Yon","Thouars","14069.0",null,"Saint Jean Pied de Port"]
["La Rochelle","Bordeaux","14501.0",null,"Saint Malo"]
["La Rochelle","Nantes","14500.0",null,"Saint Sulpice (Tarn)"]
["La Rochelle","Poitiers","14124.0",null,"Saintes"]
["Landerneau","Quimper","13964.0",null,"Sarlat"]
["Langogne  ","Arvant","15058.0",null,"Saumur"]
["Lannion","Plouaret","13962.0",null,"SE01 Les aubrais Orléans"]
["Latour de Carol","Toulouse Matabiau","14971.0",null,"SE01B Les aubrais Orléans"]
["Le Buisson","Sarlat","14032.0",null,"SE02 Les Aubrais Orléans"]
["Le Buisson","Libourne","14031.0",null,"SE02B Les Aubrais Orléans"]
["Le Croisic","Savenay ","13706.0",null,"SE03 Tours"]
["Le Mans","Tours","13711.0",null,"SE03A St Pierre des corps"]
["Le Mans","Angers Saint Laud","13701.0",null,"SE03B Tours"]
["Le Mans","Rennes","13605.0",null,"SE03C Tours"]
["Le Mans","Chartres","13603.0",null,"SE04 Dol"]
["Le Mans","Argentan","13411.0",null,"SE04A St Brieuc"]
["Les Aubrais Orléans","Vierzon","14201.0",null,"SE04B St Brieuc"]
["Les Aubrais Orléans","Tours","14103.0",null,"SE04C Brest"]
["Les Aubrais Orléans","Paris Austerlitz","14101.0",null,"SE05 Brest"]
["Les Sables d'Olonne","La Roche sur Yon ","14969.0",null,"SE05A Brest"]
["Libourne","Le Buisson","14031.0",null,"SE05B St Brieuc"]
["Limoges Bénédictins","Périgueux","14945.0",null,"SE05C Rennes"]
["Limoges Bénédictins","Brive La Gaillarde","14204.0",null,"SE05D St Brieuc"]
["Limoges Bénédictins","Châteauroux","14203.0",null,"SE06 Saint Brieuc"]
["Limoges Bénédictins","Puy-Imbert","14044.0",null,"SE06A Granville"]
["Limoges Bénédictins","Poitiers","14040.0",null,"SE06B Rennes"]
["Limoux","Carcassonne","15064.0",null,"SE06C Rennes"]
["Lison","Dol","13932.0",null,"SE06D Dol"]
["Loches","Joué Lés Tours","14063.0",null,"SE07A Le Mans"]
["Loudeac","Saint Brieuc","13066.0",null,"SE07B Le Mans"]
["Loudeac","Saint Brieuc","13066.0",null,"SE07C Dol"]
["Massy Palaiseau","Valenton","14502.0",null,"SE08 St Pierre des Corps"]
["Mazamet","Saint Sulpice (Tarn)","14077.0",null,"SE08A Tours"]
["Mont de Marsan","Morcenx","14932.0",null,"SE08B Tours"]
["Montauban","Agen","14603.0",null,"SE09 Nantes"]
["Montauban","Toulouse Matabiau","14207.0",null,"SE09ANantes"]
["Montauban","Brive la Gaillarde","14205.0",null,"SE09B Nantes"]
["Montluçon","Grannat","15955.0",null,"SE10 Saumur"]
["Montluçon","St Sulpice Laurière","14944.0",null,"SE10A Saumur"]
["Montluçon","Bourges","14066.0",null,"SE10B Saumur"]
["Morcenx","Mont de Marsan","14932.0",null,"SE10C Saumur"]
["Nantes","La Rochelle","14500.0",null,"SE11 La Roche sur Yon"]
["Nantes","St Gilles Croix de Vie","13976.0",null,"SE11A Saumur"]
["Nantes","Redon","13705.0",null,"SE11B La Roche sur Yon"]
["Nantes","Angers Saint Laud","13703.0",null,"SE12 Tours"]
["Nantes","Zone de Nantes","13076.0",null,"SE13 Versailles Chantiers"]
["Nantes","Châteaubriant","13073.0",null,"SE14A Tours"]
["Narbonne","Tarrascon","15300.0",null,"SE15 La Rochelle"]
["Paris Austerlitz","Les Aubrais Orléans","14101.0",null,"SE15A La Rochelle"]
["Paris Montparnasse","Chartres","13602.0",null,"SE16 St Pierre Des Corps"]
["Paris Montparnasse","Dreux","13401.0",null,"SE16A St Pierre Des Corps"]
["Périgueux","Agen","14033.0",null,"SE16B Vierzon"]
["Périgueux","Le Buisson","14033.1",null,"SE17 Bayonne"]
["Périgueux","Brive la Gaillarde","14935.0",null,"SE17A Angoûlème"]
["Périgueux","Coutras","14936.0",null,"SE17B Bordeaux St Jean"]
["Périgueux","Limoges Bénédictins","14945.0",null,"SE17C Angoûleme"]
["Perpignan","Villefranche Vernet les Bains","15065.0",null,"SE17D Châteauroux"]
["Plouaret","Lannion","13962.0",null,"SE18 Bordeaux St Jean"]
["Poitiers","La Rochelle","14124.0",null,"SE18A Bordeaux St Jean"]
["Poitiers","Angoûleme","14105.0",null,"SE19 Dax"]
["Poitiers","Tours","14104.0",null,"SE19A Bayonne"]
["Poitiers","Limoges Bénédictins","14040.0",null,"SE19B Bordeaux St Jean"]
["Pontivy","Auray","13067.0",null,"SE21 Tarbes"]
["Pornic","Ste Pazanne","13977.0",null,"SE21A Dax"]
["Port Bou","Carcassonne","15303.0",null,"SE21B Dax"]
["Puy-Imbert","Limoges Bénédictins","14044.0",null,"SE21C Dax"]
["Puyoo","Bayonne","14704.0",null,"SE21D Dax"]
["Quiberon","Auray","13966.0",null,"SE21E Dax"]
["Quimper","Landerneau","13964.0",null,"SE22 Tarbes"]
["Quimper","Rennes","13707.0",null,"SE22A Bordeaux St Jean"]
["Redon","Nantes","13705.0",null,"SE23 Bordeaux St Jean"]
["Rennes","Quimper","13707.0",null,"SE23A Toulouse Matabiau"]
["Rennes","Brest","13607.0",null,"SE23B Toulouse Matabiau"]
["Rennes","Le Mans","13605.0",null,"SE23B Toulouse Matabiau"]
["Rennes","Saint Malo","13065.0",null,"SE23C Toulouse Matabiau"]
["Rennes","Châteaubriant","13063.0",null,"SE24 St Jory"]
["Rennes","Châteaubriant","13063.0",null,"SE24A Béziers"]
["Rodez","Toulouse Matabiau","14977.0",null,"SE24B Perpignan"]
["Rodez","Capdenac","14073.0",null,"SE24C Béziers"]
["Rognac","Aix en Provence","15024.0",null,"SE25 Béziers"]
["Royan","Saintes","14938.0",null,"SE25A Béziers"]
["Saincaize","Vierzon","14303.0",null,"SE25B Toulouse Matabiau"]
["Saint Jean Pied de Port","Bayonne","14039.0",null,"SE25C Perpignan"]
["Saint Malo","Rennes","13065.0",null,"SE26 Perpignan"]
["Saint Sulpice (Tarn)","Mazamet","14077.0",null,"SE26A Tarbes"]
["Saintes","Royan","14938.0",null,"SE26B Dax"]
["Saintes","Angoûleme","14937.0",null,"SE26C St Jory"]
["Sarlat","Le Buisson","14032.0",null,"SE27 St Jory"]
["Saumur","Thouars","14068.0",null,"SE27A Angoûleme"]
["Savenay ","Le Croisic","13706.0",null,"SE28 Bordeaux St Jean"]
["SE01 Les aubrais Orléans","Tours","14103.1",null,"SE28A St Jory"]
["SE01B Les aubrais Orléans","Tours","14103.1",null,"SE29 St Jory"]
["SE02 Les Aubrais Orléans","Vierzon","14201.3",null,"SE29A St Jory"]
["SE02 Les Aubrais Orléans","Saincaze","14303.3",null,"SE30 St Jory"]
["SE02 Les Aubrais Orléans","Tours","14302.4",null,"SE30A Ax Les Thermes"]
["SE02B Les Aubrais Orléans","Vierzon","14201.3",null,"SE30B Toulouse Matabiau"]
["SE02B Les Aubrais Orléans","Saincaze","14303.3",null,"SE30C Toulouse Matabiau"]
["SE02B Les Aubrais Orléans","Tours","14302.4",null,"SE31 Limoges"]
["SE02B Les Aubrais Orléans","Le Mans","13711.6",null,"SE31A Limoges"]
["SE03 Tours","Le Mans","13711.6",null,"SE31B St Jory"]
["SE03 Tours","Rennes","13605.1",null,"SE32 St Jory"]
["SE03 Tours","St Malo","13065.6",null,"SE32B Bordeaux St Jean"]
["SE03A St Pierre des corps","Le Mans","13711.6",null,"SE33 Limoges"]
["SE03A St Pierre des corps","Rennes","13605.1",null,"SE33A Montauban"]
["SE03A St Pierre des corps","St Brieuc","13607.6",null,"SE34 Bordeaux St Jean"]
["SE03B Tours","Le Mans","13711.6",null,"SE36 Saintes"]
["SE03B Tours","Rennes","13605.1",null,"SE36A Périgueux"]
["SE03B Tours","Brest","13607.6",null,"SE36B Saintes"]
["SE03C Tours","Le Mans","13711.6",null,"SE37 Périgueux"]
["SE03C Tours","Rennes","13605.1",null,"SE37A Saintes"]
["SE03C Tours","Brest","13607.6",null,"SE37B Brive La Gaillarde"]
["SE04 Dol","Brest","13607.1",null,"SE37C Bordeaux St Jean"]
["SE04 Dol","Rennes","13065.2",null,"SE38 Périgueux"]
["SE04A St Brieuc","Brest","13607.1",null,"SE38A Le Buisson"]
["SE04A St Brieuc","Lannion",null,null,"SE38B Aurrillac"]
["SE04B St Brieuc","Brest","13607.1",null,"SE39 Le Buisson"]
["SE04C Brest","Lamballe","13607.1",null,"SE39A Limoges"]
["SE04C Brest","Dol","13064.1",null,"SE39B Capdenac"]
["SE05 Brest","Rennes","13607.8",null,"SE39C Limoges"]
["SE05A Brest","Quimper","13964.1",null,"SE39D Vierzon"]
["SE05A Brest","Landerneau","13607.2",null,"SE41 Montluçon"]
["SE05A Brest","Saint Brieuc","13607.3",null,"SE41A Brive La Gaillarde"]
["SE05B St Brieuc","Lamballe","13607.1",null,"SE42 Limoges"]
["SE05B St Brieuc","Dol","13064.1",null,"SE42A Vierzon"]
["SE05B St Brieuc","Rennes","13065.6",null,"SE42B Limoges"]
["SE05C Rennes","Dol","13065.6",null,"SE43 Vierzon"]
["SE05C Rrennes","St Brieuc","13607.1",null,"SE46 St Pierre des Corps"]
["SE05D St Brieuc","Rennes","13607.1",null,"SE47A Rennes"]
["SE05D St Brieuc","Dol","13065.3",null,"SE47B Nantes"]
["SE05D St Brieuc","Dinan","13064.1",null,"SE47C Nantes"]
["SE05D St Brieuc","Granville","13932.1",null,"SE48 Rennes"]
["SE06 Saint Brieuc","Rennes","13607.4",null,"SE48A Redon"]
["SE06 Saint Brieuc","Le Mans","13605.2",null,"SE50A Redon"]
["SE06A Granville","Lison","13932.2",null,"SE51 Nantes "]
["SE06B Rennes","Le Mans","13605.2",null,"SE52 St Pierre des Corps"]
["SE06C Rennes","St Malo","13065.6",null,"SE53 Nantes"]
["SE06C Rennes","Le Mans","13605.2",null,"SE54 Nantes"]
["SE06D Dol","Châteaubriant",null,null,"SE55 Nantes"]
["SE06D Dol","St Malo","13065.0",null,"SE56 Vierzon"]
["SE07A Le Mans","Loches","14063.1",null,"SE56A St Pierre des Corps"]
["SE07B Le Mans","Chinon","14062.1",null,"SE57 Nantes"]
["SE07C Dol","le Mans ","13605.4",null,"SE58 Les Aubrais Orléans"]
["SE07C Dol","St Malo","13065.4",null,"SE59 Chartres"]
["SE07C Dol","St Pierre Des Corps","13711.4",null,"SE60 Nantes"]
["SE08 St Pierre des Corps","Nantes","13703.1",null,"SE61 Tours"]
["SE08 St Pierre des Corps","Angers Saint Laud","13703.3",null,"SE63 Le Mans"]
["SE08A Tours","Angers Saint Laud","14301.1",null,"SE63A Chartres"]
["SE08A Tours","Nantes","13703.1",null,"SE63B Chartres"]
["SE08B Tours","Nantes","13703.1",null,"SE63C Le Mans"]
["SE08B Tours","Angers Saint Laud","14301.6",null,"SE64 Chartres"]
["SE09 Nantes","Saumur","14301.3",null,"SE64A Bordeaux St Jean"]
["SE09 Nantes","Angers St Laud","13703.3",null,"SE65 Toulouse Matabiau"]
["SE09A Nantes","Angers Saint Laud","14301.1",null,"SE65A Le Mans"]
["SE09A Nantes","Saumur","14301.3",null,"SE66 Toulouse Matabiau"]
["SE09A Nantes","Thouars","14068.0",null,"SE67 Le Mans"]
["SE09B Nantes","Angers St Laud","13703.6",null,"SE67A Les aubrais Orléans"]
["SE09B Nantes","St Pierre Des Corps","13711.5",null,"SE67B Les aubrais Orléans"]
["SE10 Saumur","La Roche sur Yon","14069.1",null,"SE72 Chartres"]
["SE10 Saumur","Les Sables d'Olonne","14969.1",null,"SE73 Le Mans"]
["SE10A Saumur","Thouars","14068.1",null,"St Gilles Croix de Vie"]
["SE10A Saumur","La Roche sur Yon","14069.1",null,"St Sulpice Laurière"]
["SE10B Saumur","Les Sables d'Olonne","14969.1",null,"Ste Pazanne"]
["SE10B Saumur","La Roche sur Yon","14069.1",null,"Tarbes"]
["SE10B Saumur","Thouars","14068.1",null,"Tessonnières"]
["SE10C Saumur","Thouars","14068.1",null,"Thouars"]
["SE10C Saumur","La Roche sur Yon","14069.1",null,"Toulouse Matabiau"]
["SE11 La Roche sur Yon","Nantes","14500.1",null,"Tours"]
["SE11 La Roche sur Yon","Angers Saint Laud","13703.4",null,"Trappes"]
["SE11 La Roche sur Yon","Tours","14301.4",null,"Troyes"]
["SE11A Saumur","Tours","14301.4",null,"Ussel"]
["SE11B La Roche sur Yon","Thouars","14069.1",null,"Vierzon"]
["SE11B La Roche sur Yon","Saumur","14068.1",null,"Viescamp sous Jallés"]
["SE11B La Roche sur Yon","Tours","14301.4",null,"Villefranche Vernet les Bains"]
["SE12 Tours","Brétigny","14001.1",null,"Zone de Nantes"]
["SE12 Tours","Châteaudun","14061.1"]
["SE12 Tours","Jusivy","14502.1"]
["SE12 Tours","Versailles Chantiers","14503.1"]
["SE13 Versailles Chantiers","Brétigny","14502.1"]
["SE13 Versailles Chantiers","Châteaudun","14001.1"]
["SE13 Versailles Chantiers","Massy","14503.1"]
["SE13 Versailles Chantiers","Tours","14061.1"]
["SE14A Tours","Poitiers","14104.1"]
["SE14A Tours","La Rochelle","14124.1"]
["SE15 La Rochelle","Poitiers","14124.2"]
["SE15 La Rochelle","Tours","14104.2"]
["SE15A La Rochelle","Poitiers","14124.2"]
["SE15A La Rochelle","Tours","14104.2"]
["SE16 St Pierre Des Corps","Poitiers","14104.4"]
["SE16 St Pierre Des Corps","Angoûleme","14105.1"]
["SE16A St Pierre Des Corps","Poitiers","14104.0"]
["SE16A St Pierre Des Corps","Angoûleme","14105.0"]
["SE16A St Pierre Des Corps","Coutras","14106.0"]
["SE16A St Pierre Des Corps","Bordeaux St Jean","14107.0"]
["SE16B Vierzon","Châteauroux","14202.1"]
["SE17 Bayonne","Hendaye","14109.4"]
["SE17A Angoûlème","Coutras","14106.2"]
["SE17A Angoûlème","Bordeaux St Jean","14107.2"]
["SE17A Angoûlème","Dax","14108.1"]
["SE17B Bordeaux St Jean","Dax","14108.4"]
["SE17B Bordeaux St Jean","Hendaye","14109.4"]
["SE17B Bordeaux St Jean","Puyoo","14704.1"]
["SE17C Angoûleme","Coutras","14106.2"]
["SE17C Angoûleme","Bordeaux St Jean","14107.2"]
["SE17D Châteauroux","Périgueux","14945.1"]
["SE17D Châteauroux","Coutras","14936.0"]
["SE17D Châteauroux","Bordeaux St Jean","14107.0"]
["SE17D Châteauroux","Limoges Bénédictins","14203.0"]
["SE18 Bordeaux St Jean","Dax","14108.1"]
["SE18 Bordeaux St Jean","Puyoo","14703.4"]
["SE18 Bordeaux St Jean","Bayonne","14704.1"]
["SE18 Bordeaux St Jean","Dax","14109.1"]
["SE18A Bordeaux St Jean","Puyoo","14703.1"]
["SE18A Bordeaux St Jean","Dax","14108.1"]
["SE19 Dax","Hendaye","14109.4"]
["SE19 Dax","Bedous","14931.0"]
["SE19 Dax","Tarbes","14703.2"]
["SE19A Bayonne","Puyoo","14704.3"]
["SE19A Bayonne","Dax","14108.1"]
["SE19A Bayonne","Hendaye","14109.2"]
["SE19A Bayonne","Tarbes","14703.2"]
["SE19B Bordeaux St Jean","Tarbes","14703.2"]
["SE19B Bordeaux St Jean","Dax","14108.1"]
["SE21 Tarbes","Dax","14703.3","2024-05-03"]
["SE21 Tarbes","Morcenx","14108.3","2024-05-03"]
["SE21 Tarbes","Mont de Marsan","14932.1"]
["SE21 Tarbes","Bordeaux St Jean","14108.2"]
["SE21A Dax","Dax","14108.1"]
["SE21A Dax","Puyoo","14703.3"]
["SE21A Dax","Tarbes","14703.2"]
["SE21B Dax","Puyoo","14703.3"]
["SE21B Dax","Bordeaux St Jean","14108.1"]
["SE21C Dax","Tarbes","14703.5"]
["SE21D Dax","Dax","14109.5"]
["SE21D Dax","Puyoo","14704.3"]
["SE21D Dax","Tarbes","14703.5"]
["SE21E Dax","Bordeaux St Jean","14108.1"]
["SE22 Tarbes","Toulouse","14702.1"]
["SE22 Tarbes","Tessonniéres","14977.3"]
["SE22A Bordeaux St Jean","Coutras","14107.1"]
["SE22A Bordeaux St Jean","Angoûleme","14106.1"]
["SE23 Bordeaux St Jean","Agen","14602.1"]
["SE23 Bordeaux St Jean","Montauban","14603.1"]
["SE23 Bordeaux St Jean","Toulouse Matabiau","14207.1"]
["SE23A Toulouse Matabiau","Carcassonne","14208.3"]
["SE23A Toulouse Matabiau","Narbonne","15303.4"]
["SE23A Toulouse Matabiau","Béziers","15300.3"]
["SE23B Toulouse Matabiau","Carcassonne","14208.3"]
["SE23B Toulouse Matabiau","Perpignan","15303.4"]
["SE23C Toulouse Matabiau","Carcassonne","14208.3"]
["SE23C Toulouse Matabiau","Narbonne","15303.4"]
["SE23C Toulouse Matabiau","Béziers","15300.3"]
["SE24 St Jory","Carcassonne","14208.1"]
["SE24 St Jory","Limoux","15064.1"]
["SE24 St Jory","Narbonne","15303.1"]
["SE24 St Jory","Béziers","15300.1"]
["SE24A Béziers","Narbonne","15300.4"]
["SE24A Béziers","Port Bou","15303.5"]
["SE24B Perpignan","Carcassonne","15303.1"]
["SE24B Perpignan","Le Boulou","15311.1"]
["SE24B Perpignan","Toulouse Matabiau","14208.1"]
["SE24C Béziers","Narbonne","15300.4"]
["SE24C Béziers","Carcassonne","15303.1"]
["SE24C Béziers","Port Bou","15303.2"]
["SE24C Toulouse Matabiau","Limoux","15064.1"]
["SE25 Béziers","Narbonne","15300.2"]
["SE25 Béziers","Port Bou","15303.2"]
["SE25 Béziers","Villefranche Vernet Les Bains","15065.1"]
["SE25A Béziers","Narbonne","15300.5"]
["SE25A Béziers","Carcassonne","15303.6"]
["SE25A Béziers","Toulouse Matabiau","14208.4"]
["SE25A Béziers","Tarbes","14702.2"]
["SE25B Toulouse Matabiau","Tarbes","14703.5"]
["SE25B Toulouse Matabiau","Toulouse","14702.1"]
["SE25C Perpignan","Port Bou","15303.2"]
["SE25C Perpignan","Narbonne","15300.5"]
["SE25C Perpignan","Carcassonne","15303.6"]
["SE26 Perpignan","Carcassonne","15303.3"]
["SE26 Perpignan","Béziers","15300.1"]
["SE26 Perpignan","Toulouse Matabiau","14208.2"]
["SE26A Tarbes","Bordeaux St Jean","14108.5"]
["SE26A Tarbes","Dax","14703.6"]
["SE26B Dax","Bordeaux St Jean","14108.5"]
["SE26B Dax","Coutras","14107.1"]
["SE26B Dax","Angoûleme","14106.1"]
["SE26C St Jory","Bordeaux St Jean","14108.5"]
["SE26C St Jory","Dax","14703.6"]
["SE27 St Jory","Auch","14079.1"]
["SE27A Angoûleme","Bordeaux StJean","14107.1"]
["SE27A Angoûleme","Coutras","14106.1"]
["SE28 Bordeaux St Jean","Toulouse Matabiau","14207.1"]
["SE28 Bordeaux St Jean","Montauban","14603.1"]
["SE28 Bordeaux St Jean","Agen","14602;1"]
["SE28A St Jory","Tessonniéres","14977.1"]
["SE29 St Jory","Foix","14971.1"]
["SE29 St Jory","Auch","14079.2"]
["SE29A St Jory","Foix","14971.1"]
["SE29A St Jory","Colomiers","14079.2"]
["SE29A St Jory","Ax Les Thermes","14971.2"]
["SE30 St Jory","Tessonnieres","14977.2"]
["SE30 St Jory","Capdenac","14976.1"]
["SE30 St Jory","Brive La Gaillarde","14975.1"]
["SE30 St Jory","Limoges","14204.1"]
["SE30A Ax Les Thermes","Toulouse Matabiau","14971.3"]
["SE30B Toulouse Matabiau","Montauban","14207.2"]
["SE30C Toulouse Matabiau","Montauban","14207.2"]
["SE30C Toulouse Matabiau","Brive La Gaillarde","14975.1"]
["SE30C Toulouse Matabiau","Limoges","14204.1"]
["SE31 Limoges","Brive La Gaillarde","ach"]
["SE31 Limoges","Montauban","ach"]
["SE31A Limoges","Montauban","14207.2"]
["SE31A Limoges","Brive La Gaillarde","14975.1"]
["SE31B St Jory","Montauban","14207.3"]
["SE31B St Jory","Agen","14603.4"]
["SE31B St Jory","Bordeaux","14602.4"]
["SE32 St Jory","Montauban","14207.3"]
["SE32 St Jory","Agen","14603.4"]
["SE32 St Jory","Bordeaux","14602.4"]
["SE32 St Jory","Saintes","14501.1"]
["SE32A Montauban","Agen","14603.2"]
["SE32A Montauban","Bordeaux St Jean","14602.2"]
["SE32B Bordeaux St Jean","Saintes","14501.4"]
["SE32B Bordeaux St Jean","Angoûleme","14937.1"]
["SE32B Bordeaux St Jean","Coutras","14106.1"]
["SE32B Bordeaux St Jean","Périgueux","14936.1"]
["SE33 Limoges","Montjovis","14043.1"]
["SE33A Montauban","Agen","14603.2"]
["SE33A Montauban","Bordeaux St Jean","14602.2"]
["SE34 Bordeaux St Jean","Dax","14108.1"]
["SE34 Bordeaux St Jean","Arcarchon","14141.0"]
["SE35 Bordeaux St Jean","Coutras","14107.1"]
["SE35 Bordeaux St Jean","Périgueux","14936.1"]
["SE36 Saintes","La Rochelle","14501.2"]
["SE36A Périgueux","Limoges","14945.2"]
["SE36A Périgueux","Brive La Gaillarde","14204.3"]
["SE36B Saintes","Niort","14030.0"]
["SE36B Saintes","La Rochelle","14501.2"]
["SE37 Périgueux","Brive La Gaillarde","14935.1"]
["SE37A Saintes","Bordeaux St Jean","14501.3"]
["SE37A Saintes","Agen","14602.5"]
["SE37A Saintes","Le Buisson","14033.1"]
["SE37B Brive La Gaillarde","St Denis près Martel","14975.2"]
["SE37B Brive La Gaillarde","Aurillac","15952.1"]
["SE37B Brive La Gaillarde","Figeac","14071.1"]
["SE37C Bordeaux St Jean","Coutras","14107.1"]
["SE37C Bordeaux St Jean","Périgueux","14936.1"]
["SE37C Bordeaux St Jean","Limoges","14945.2"]
["SE38 Périgueux","Limoges","14945.2"]
["SE38 Périgueux","St Yireix","14035.1"]
["SE38A Le Buisson","Sarlat","14032.1"]
["SE38A Le Buisson","Libourne","14031.1"]
["SE38B Aurrillac","Capdenac","14975.2"]
["SE38B Aurrillac","Viescamp","15952.1"]
["SE39 Le Buisson","Périgueux","14033.3"]
["SE39 Le Buisson","Limoges","14945.3"]
["SE39A Limoges","St Sulpice","14203.1"]
["SE39A Limoges","Montluçon","14944.1"]
["SE39A Limoges","Felletin","14041.1"]
["SE39B Capdenac","Rodez","14073.1"]
["SE39B Capdenac","Toulouse","14977.5"]
["SE39C Limoges","Châteauroux","14203.0"]
["SE39C Limoges","Vierzon","14202.0"]
["SE39D Vierzon","Châteauroux","14203.0"]
["SE39D Vierzon","Limoges Bénédictins","14203.0"]
["SE40 Limoges","Vierzon","14202.3"]
["SE40 Limoges","Bourges","14303.2"]
["SE40 Limoges","Montluçon","14066.1"]
["SE40 Limoges","Châteauroux","14203.5"]
["SE40A St Jory","Brive La Gaillarde","14975.3"]
["SE40A St Jory","Tessonnieres","14977.1"]
["SE40D St Jory","Capdenac","14976.3"]
["SE41 Montluçon","St Sulpice","14944.2"]
["SE41 Montluçon","Limoges","14203.2"]
["SE41 Montluçon","Châteauroux","14203.3"]
["SE41 Montluçon","Vierzon","14202.2"]
["SE41A Brive La Gaillarde","Objat","14045.1"]
["SE41A Brive La Gaillarde","Limoges","14204.1"]
["SE41A Brive La Gaillarde","Châteauroux","14203.1"]
["SE41A Brive La Gaillarde","Vierzon","14202.6"]
["SE42 Limoges","St Benoit","14040.1"]
["SE42 Limoges","St Pierre des Corps","14104.3"]
["SE42A Vierzon","Châteauroux","14202.4"]
["SE42A Vierzon","Limoges","14203.4"]
["SE42A Vierzon","Brive La Gaillarde","14204.2"]
["SE42B Limoges","Châteauroux","14202.4"]
["SE42B Limoges","Limoges","14203.4"]
["SE43 Vierzon","St Benoit","14040.1"]
["SE43 Vierzon","Châteauroux","14202.1"]
["SE43 Vierzon","Limoges","14203.1"]
["SE43 Vierzon","Tours","14104.0"]
["SE46 St Pierre des Corps","Angers Saint Laud","14301.0"]
["SE46 St Pierre des Corps","Nantes","13703.0"]
["SE46 St Pierre des Corps","La Roche sur Yon","14500.1"]
["SE47A Rennes","Redon","13707.1"]
["SE47A Rennes","Le Croisic","13706.1"]
["SE47A Rennes","Nantes","13705.2"]
["SE47B Nantes","Redon","13705.3"]
["SE47B Nantes","Rennes","13707.2"]
["SE47C Nantes","La Roche sur Yon","14500.3"]
["SE47C Nantes","Rennes","13707.2"]
["SE47C Nantes","Redon","13705.3"]
["SE48 Rennes","Quimper","13707.3"]
["SE48A Redon","Quimper","13707.3"]
["SE50A Redon","Nantes","13705.4"]
["SE50A Redon","Le Croisic","13706.1"]
["SE51 Nantes ","Angers","13703.5"]
["SE51 Nantes ","Le Mans","13701.2"]
["SE52 St Pierre des Corps","Angers St Laud","14301.5"]
["SE52 St Pierre des Corps","Nantes","13703.5"]
["SE52 St Pierre des Corps","Redon","13705.1"]
["SE53 Nantes","Pornic","13977.1"]
["SE53 Nantes","St Gilles Croix de Vie","13976.1"]
["SE54 Nantes","La Rochelle","14500.2"]
["SE55 Nantes","Angers St Laud","ACH"]
["SE55 Nantes","Le Mans","ACH"]
["SE56 Vierzon","Châteauroux","14202.5"]
["SE56 Vierzon","Limoges","14203.6"]
["SE56A St Pierre des Corps","Angers","14301.0"]
["SE56A St Pierre des Corps","Nantes","13703.0"]
["SE56A St Pierre des Corps","La Roche sur Yon","14500.3"]
["SE57 Nantes","Angers St Laud","13703.0"]
["SE57 Nantes","Le Mans","13701.2"]
["SE58 Les Aubrais Orléans","St Pierre Des Corps","14103.0"]
["SE59 Chartres","Voves","14005.1"]
["SE59 Nantes","La Roche sur Yon","14500.0"]
["SE60 Nantes","Angers St Laud","13703.3"]
["SE61 Tours","Angers St Laud","14301.0"]
["SE61 Tours","Nantes","13703.0"]
["SE63 Le Mans","Paris Montparnasse","13602.1"]
["SE63A Chartres","Courtalain","13049.1"]
["SE63B Chartres","Paris Montparnasse","13602.1"]
["SE63C Le Mans","Chartres","13603.1"]
["SE64 Chartres","Paris Montparnasse","13602.2"]
["SE64 Chartres","Le Mans","13603.2"]
["SE64A Bordeaux St Jean","Agen","14602.3"]
["SE64A Bordeaux St Jean","Montauban","14603.3"]
["SE65 Toulouse Matabiau","Carmaux","14977.4"]
["SE65A Le Mans","Tours","13711.2"]
["SE65A Le Mans","Vierzon","14302.3"]
["SE65A Le Mans","Les Aubrais Orléans","14201.2"]
["SE66 Toulouse Matabiau","Montauban","14207.2"]
["SE66 Toulouse Matabiau","Brive la gaillarde","14205.1"]
["SE67A Les aubrais Orléans","Paris austerlitz","14101.1"]
["SE67B Les aubrais Orléans","Paris austerlitz","14101.2"]
["SE72 Chartres","Voves","14005.1"]
["SE73 Le Mans","Angers St Laud","13701.1"]
["St Gilles Croix de Vie","Nantes","13976.0"]
["St Gilles Croix de Vie","Nantes","13976.0"]
["St Sulpice Laurière","Montluçon","14944.0"]
["St Sulpice Laurière","Montluçon","14944.0"]
["Ste Pazanne","Pornic","13977.0"]
["Ste Pazanne","Pornic","13977.0"]
["Tarbes","Dax","14703.0"]
["Tarbes","Toulouse Matabiau","14702.0"]
["Tarbes","Dax","14703.0"]
["Tarbes","Toulouse Matabiau","14702.0"]
["Tarrascon","Narbonne","15300.0"]
["Tessonnières","Toulouse Matabiau","14977.1"]
["Tessonnières","Capdenac","14976.0"]
["Tessonnières","Toulouse Matabiau","14977.1"]
["Tessonnières","Capdenac","14976.0"]
["Thouars","La Roche sur Yon","14069.0"]
["Thouars","Saumur","14068.0"]
["Thouars","La Roche sur Yon","14069.0"]
["Thouars","Saumur","14068.0"]
["Toulouse Matabiau","Tessonniéres","14977.1"]
["Toulouse Matabiau","Rodez","14977.0"]
["Toulouse Matabiau","Latour de Carol","14971.0"]
["Toulouse Matabiau","Tarbes","14702.0"]
["Toulouse Matabiau","Carcassonne","14208.0"]
["Toulouse Matabiau","Montauban","14207.0"]
["Toulouse Matabiau","Auch","14079.0"]
["Toulouse Matabiau","Tessonniéres","14977.1"]
["Toulouse Matabiau","Rodez","14977.0"]
["Toulouse Matabiau","Latour de Carol","14971.0"]
["Toulouse Matabiau","Tarbes","14702.0"]
["Toulouse Matabiau","Carcassonne","14208.0"]
["Toulouse Matabiau","Montauban","14207.0"]
["Toulouse Matabiau","Montauban","14207.0"]
["Toulouse Matabiau","Auch","14079.0"]
["Tours","Vierzon","14302.0"]
["Tours","Angers Saint Laud","14301.0"]
["Tours","Poitiers","14104.0"]
["Tours","Les Aubrais Orléans","14103.0"]
["Tours","Chinon","14062.0"]
["Tours","Châteaudun","14061.0"]
["Tours","Le Mans","13711.0"]
["Tours","Vierzon","14302.0"]
["Tours","Angers Saint Laud","14301.0"]
["Tours","Poitiers","14104.0"]
["Tours","Les Aubrais Orléans","14103.0"]
["Tours","Chinon","14062.0"]
["Tours","Châteaudun","14061.0"]
["Tours","Le Mans","13711.0"]
["Ussel","Brive La Gaillarde","14942.0"]
["Ussel","Brive La Gaillarde","14942.0"]
["Valenton","Trappes","14503.0"]
["Valenton","Massy Palaiseau","14502.0"]
["Valenton","Trappes","14503.0"]
["Valenton","Massy Palaiseau","14502.0"]
["Vierzon","Tours","14302.0"]
["Vierzon","Saincaize","14303.0"]
["Vierzon","Châteauroux","14202.0"]
["Vierzon","Les Aubrais Orléans","14201.0"]
["Vierzon","Saincaize","14303.0"]
["Vierzon","Tours","14302.0"]
["Vierzon","Châteauroux","14202.0"]
["Vierzon","Les Aubrais Orléans","14201.0"]
["Viescamp","Capdenac","14071.0"]
["Viescamp","Capdenac","14071.0"]
["Viescamp sous Jallés","Aurillac","15952.0"]
["Viescamp sous Jallés","Saint Denis Près Martel","15952.0"]
["Viescamp sous Jallés","Aurillac","15952.0"]
["Viescamp sous Jallés","Saint Denis Près Martel","15952.0"]
["Villefranche Vernet les Bains","Perpignan","15065.0"]
["Villefranche Vernet les Bains","Perpignan","15065.0"]
["Voves","Chartres","14005.0"]
["Voves","Chartres","14005.0"]
["Zone de Nantes","Nantes","13076.0"]
["Zone de Nantes","Nantes","13076.0"]

{"sheet":"Données","index":3,"n_rows":9,"n_cols":11,"rows_kept":9,"hidden":true}
["ESV",null,{"$f":"DATE(2022,1,1)","v":"2022-01-01"},"MESURE","ACH","PROG","EIC","LOC","LTV",null,"INFOS"]
[701,null,null,"Programme Réalisé","Evolution","Différence PK TOPO/SILVIO","Arrêt Circulation","Panne","LTV 30",null,"---"]
[702,null,null,"Mesure Supplémentaire","Acheminement","Arrêt Circulation ","Passage en IPCS","Abs de Données","LTV 40",null,"Rbt"]
[703,null,null,"Demande infrapôle Géov2","Ach Supplémentaire","Arrêt Circulation (Prog)","Sillon Imposé","Mauvaise Décision","LTV 60",null,"Evit"]
[{"$nulls":3},"Rattrapage GéoV2",null,"Journée Annulée","Sillon non Respecté","Erreur Loc","LTV 80",null,"Garage"]
[{"$nulls":3},"Run Validation GéoV2",null,"Journée Modifiée","Travaux"]
[{"$nulls":5},"Sillon Non Conforme à la Mesure","Demande Infrapole"]
[{"$nulls":5},"Mesure Supprimé","Dérouillage de Voies"]
[{"$nulls":5},"Demande infrapole"]